bitfinex/quotes_BTCUSD_20241120
["timestamp","ask_amount","ask_price","bid_price","bid_amount"]
[1732135610663,6e-08,94481.0,94480.0,0.38970429]
[1732135610885,6e-08,94481.0,94480.0,0.39170429]
[1732135612305,6e-08,94481.0,94480.0,0.38970429]
[1732135612522,6e-08,94481.0,94480.0,0.105842]
[1732135614709,6e-08,94481.0,94480.0,0.10690031]
[1732135616120,6e-08,94481.0,94480.0,0.20690031]
[1732135619254,6e-08,94481.0,94480.0,0.32830031]
[1732135619463,0.01965805,94500.0,94497.0,0.1]
[1732135619662,0.01965805,94500.0,94499.0,0.38968329]
[1732135619663,5e-08,94500.0,94499.0,0.38968329]
[1732135620249,5e-08,94500.0,94499.0,0.39589429]
[1732135620677,5e-08,94500.0,94499.0,0.212032]
[1732135621331,5e-08,94500.0,94499.0,0.33225072]
[1732135622899,5e-08,94500.0,94499.0,0.112032]
[1732135623111,0.11711517,94500.0,94499.0,0.112032]
[1732135623737,0.11711517,94500.0,94495.0,0.105825]
[1732135623938,0.01,94493.0,94492.0,0.105829]
[1732135624366,0.0914,94483.0,94482.0,0.148166]
[1732135624548,0.0914,94483.0,94482.0,0.10584]
[1732135624549,0.19851512,94483.0,94482.0,0.10584]
[1732135625214,0.18851512,94483.0,94482.0,0.10584]
[1732135625417,0.10711512,94483.0,94482.0,0.10584]
[1732135625776,0.0572,94490.0,94477.0,0.148183]
[1732135625981,0.0572,94490.0,94489.0,0.105832]
[1732135625982,0.15431512,94490.0,94489.0,0.105832]
[1732135626892,0.16431512,94490.0,94489.0,0.105832]
[1732135627974,0.11711512,94490.0,94489.0,0.105832]
[1732135628221,0.10711512,94490.0,94489.0,0.105832]
[1732135628401,0.10711512,94490.0,94487.0,0.148167]
[1732135628402,0.01,94499.0,94498.0,0.105822]
[1732135628742,0.11711512,94499.0,94498.0,0.105822]
[1732135629916,0.15000296,94499.0,94498.0,0.105822]
[1732135630090,0.12711512,94499.0,94498.0,0.105822]
[1732135630286,0.12711512,94499.0,94490.0,0.296326]
[1732135630487,0.10711512,94498.0,94497.0,0.105822]
[1732135630887,0.01,94492.0,94491.0,0.10583]
[1732135631113,0.11711512,94492.0,94491.0,0.10583]
[1732135631853,0.10085912,94492.0,94479.0,0.14818]
[1732135632099,0.10085912,94492.0,94471.0,0.149905]
[1732135632100,0.01,94490.0,94471.0,0.001712]
[1732135632318,0.10711512,94489.0,94485.0,0.105836]
[1732135632708,0.0851,94490.0,94471.0,0.001712]
[1732135632709,0.01,94478.0,94471.0,0.001712]
[1732135632879,0.10711512,94477.0,94472.0,0.148192]
[1732135633083,0.10711512,94477.0,94476.0,0.105846]
[1732135635367,0.0851,94490.0,94471.0,0.001712]
[1732135635577,0.1178,94498.0,94497.0,0.105823]
[1732135635776,0.00085605,94500.0,94499.0,0.105821]
[1732135636533,0.00085605,94500.0,94499.0,0.1075324]
[1732135636944,0.00085605,94500.0,94499.0,0.10859053]
[1732135637514,0.00085605,94500.0,94499.0,0.1075324]
[1732135638916,0.00085605,94500.0,94499.0,0.13438926]
[1732135639560,0.00085605,94500.0,94499.0,0.1075324]
[1732135639561,0.11797117,94500.0,94499.0,0.1075324]
[1732135639745,0.11797117,94500.0,94499.0,0.0017114]
[1732135639948,0.11797117,94500.0,94499.0,0.1075324]
[1732135639949,0.19487117,94500.0,94499.0,0.1075324]
[1732135640547,0.19487117,94500.0,94499.0,0.0017114]
[1732135640753,0.34699117,94500.0,94499.0,0.0017114]
[1732135641303,0.24117117,94500.0,94499.0,0.0017114]
[1732135641498,0.33538359,94500.0,94489.0,0.105832]
[1732135641697,0.01,94489.0,94487.0,0.148168]
[1732135641901,0.01,94485.0,94484.0,0.254011]
[1732135642094,0.11711512,94485.0,94484.0,0.254011]
[1732135644680,0.10711512,94485.0,94484.0,0.254011]
[1732135645622,0.01,94493.0,94492.0,0.253988]
[1732135645901,0.11711512,94493.0,94492.0,0.253988]
[1732135646416,0.01,94489.0,94472.0,0.105851]
[1732135646617,0.10711512,94488.0,94472.0,0.148192]
[1732135646789,0.10711512,94488.0,94466.0,0.1]
[1732135646790,0.11711512,94488.0,94466.0,0.1]
[1732135647012,0.09481971,94487.0,94478.0,0.148182]
[1732135647145,0.20193483,94486.0,94485.0,0.105836]
[1732135647359,0.10711512,94486.0,94485.0,0.105836]
[1732135648373,0.10711512,94486.0,94483.0,0.105838]
[1732135648586,0.10711512,94486.0,94481.0,0.148177]
[1732135648787,0.10711512,94486.0,94485.0,0.105836]
[1732135649214,0.10711512,94486.0,94485.0,0.1075476]
[1732135650464,0.12405605,94500.0,94497.0,0.105823]
[1732135650465,0.01,94498.0,94497.0,0.105823]
[1732135650636,0.11711512,94498.0,94497.0,0.105823]
[1732135651269,0.10711512,94498.0,94497.0,0.105823]
[1732135651472,0.01,94496.0,94489.0,0.105831]
[1732135651684,0.01,94496.0,94480.0,0.148178]
[1732135651685,0.10711512,94495.0,94480.0,0.148178]
[1732135651909,0.01,94486.0,94485.0,0.1075476]
[1732135652041,0.11711512,94486.0,94485.0,0.1075476]
[1732135652242,0.11711512,94486.0,94485.0,0.0017116]
[1732135653045,0.12882663,94486.0,94485.0,0.0017116]
[1732135653588,0.31106163,94486.0,94485.0,0.0017116]
[1732135653792,0.31106163,94486.0,94471.0,0.107564]
[1732135653793,0.01,94472.0,94471.0,0.107564]
[1732135653953,0.11711512,94472.0,94471.0,0.107564]
[1732135654157,0.11711512,94472.0,94471.0,0.001712]
[1732135654358,0.11711512,94472.0,94471.0,0.107564]
[1732135654664,0.01,94482.0,94479.0,0.105843]
[1732135654865,0.1254,94486.0,94471.0,0.001712]
[1732135654866,0.01,94479.0,94478.0,0.105844]
[1732135655073,0.11711512,94479.0,94478.0,0.105844]
[1732135655713,0.01,94488.0,94487.0,0.105834]
[1732135655937,0.10711512,94488.0,94473.0,0.1]
[1732135656139,0.01,94491.0,94473.0,0.1]
[1732135656140,0.10711512,94487.0,94475.0,0.148187]
[1732135656326,0.10711512,94487.0,94486.0,0.105835]
[1732135656851,0.11882663,94487.0,94472.0,0.148192]
[1732135657050,0.10711512,94487.0,94485.0,0.105836]
[1732135657923,0.10711512,94487.0,94486.0,0.105835]
[1732135658130,0.10711512,94487.0,94471.0,0.001712]
[1732135658276,0.10711512,94487.0,94474.0,0.148188]
[1732135658478,0.10711512,94487.0,94486.0,0.105835]
[1732135658719,0.10711512,94487.0,94484.0,0.105837]
[1732135658895,0.10711512,94487.0,94485.0,0.105836]
[1732135659103,0.10711512,94487.0,94474.0,0.148188]
[1732135659104,0.10711512,94487.0,94486.0,0.105835]
[1732135659299,0.10711512,94487.0,94472.0,0.148192]
[1732135659539,0.10711512,94487.0,94485.0,0.105836]
[1732135659694,0.10711512,94487.0,94471.0,0.001712]
[1732135659695,0.01,94486.0,94471.0,0.001712]
[1732135660038,0.01,94482.0,94471.0,0.001712]
[1732135660238,0.11711512,94481.0,94478.0,0.105843]
[1732135660439,0.11711512,94481.0,94479.0,0.105843]
[1732135660641,0.11711512,94481.0,94471.0,0.001712]
[1732135660801,0.11711512,94481.0,94479.0,0.105843]
[1732135660999,0.11711512,94481.0,94477.0,0.148184]
[1732135661000,0.11711512,94481.0,94480.0,0.105842]
[1732135662346,0.01,94487.0,94477.0,0.148184]
[1732135662542,0.01,94487.0,94471.0,0.001712]
[1732135662543,0.10711512,94486.0,94485.0,0.105836]
[1732135662953,0.0764,94497.0,94496.0,0.105824]
[1732135662954,0.01,94497.0,94496.0,0.105824]
[1732135663157,0.10711512,94497.0,94496.0,0.105824]
[1732135663950,0.0008557,94499.0,94498.0,0.105822]
[1732135671062,0.10797082,94499.0,94498.0,0.105822]
[1732135671733,0.10797082,94499.0,94493.0,0.148158]
[1732135671734,0.01,94494.0,94493.0,0.105827]
[1732135671949,0.01,94494.0,94461.0,0.09364496]
[1732135671950,0.01,94489.0,94488.0,0.105833]
[1732135672158,0.11711512,94489.0,94488.0,0.105833]
[1732135672762,0.0008557,94499.0,94492.0,0.105829]
[1732135672763,0.01,94493.0,94492.0,0.105829]
[1732135672995,0.10711512,94493.0,94492.0,0.105829]
[1732135674585,0.11711512,94493.0,94492.0,0.105829]
[1732135674774,0.11711512,94493.0,94483.0,0.105839]
[1732135674775,0.01,94484.0,94483.0,0.105839]
[1732135674900,0.19901512,94484.0,94483.0,0.105839]
[1732135675100,0.21891663,94484.0,94483.0,0.105839]
[1732135675303,0.19901512,94484.0,94483.0,0.105839]
[1732135675503,0.01,94481.0,94480.0,0.254021]
[1732135675735,0.11711512,94481.0,94480.0,0.254021]
[1732135676194,0.10711512,94481.0,94480.0,0.254021]
[1732135679922,0.10711512,94481.0,94480.0,0.28210273]
[1732135680322,0.10711512,94481.0,94480.0,0.254021]
[1732135683122,0.10711512,94481.0,94480.0,0.105842]
[1732135683277,0.10711512,94481.0,94477.0,0.105845]
[1732135683485,0.01,94474.0,94473.0,0.001712]
[1732135683685,0.24641512,94474.0,94473.0,0.001712]
[1732135683888,0.37526412,94474.0,94473.0,0.001712]
[1732135684213,0.25941512,94474.0,94473.0,0.001712]
[1732135684622,0.23641512,94474.0,94473.0,0.107562]
[1732135684825,0.15401512,94474.0,94473.0,0.107562]
[1732135685962,0.10711512,94474.0,94473.0,0.107562]
[1732135686371,0.0947516,94490.0,94473.0,0.001712]
[1732135686571,0.10711512,94489.0,94488.0,0.105833]
[1732135691292,0.10711512,94489.0,94467.0,0.148199]
[1732135691513,0.0482,94481.0,94471.0,0.149904]
[1732135691720,0.10711512,94480.0,94479.0,0.105843]
[1732135692441,0.10711512,94480.0,94475.0,0.148187]
[1732135692442,0.10711512,94480.0,94477.0,0.105844]
[1732135692645,0.10711512,94480.0,94474.0,0.148188]
[1732135692646,0.10711512,94480.0,94479.0,0.105843]
[1732135695577,0.10711512,94480.0,94474.0,0.148188]
[1732135695778,0.10711512,94480.0,94479.0,0.105843]
[1732135696764,0.10711512,94480.0,94473.0,0.00153626]
[1732135696966,0.34330647,94474.0,94473.0,0.00153626]
[1732135697167,0.47410647,94474.0,94473.0,0.00153626]
[1732135697578,0.98410647,94474.0,94473.0,0.00153626]
[1732135697800,1.22186902,94474.0,94473.0,0.00153626]
[1732135698621,1.22386902,94474.0,94473.0,0.00153626]
[1732135700667,1.22386902,94474.0,94421.0,0.01]
[1732135700668,0.01,94461.0,94446.0,0.137643]
[1732135700869,0.01,94461.0,94448.0,0.105877]
[1732135700870,0.10711512,94459.0,94448.0,0.105877]
[1732135701141,0.10711512,94459.0,94439.0,0.137654]
[1732135701142,0.10711512,94458.0,94439.0,0.137654]
[1732135701347,0.10711512,94458.0,94438.0,0.02721202]
[1732135701348,0.105869,94457.0,94449.0,0.243516]
[1732135701549,0.105869,94457.0,94445.0,0.137645]
[1732135701550,0.22745747,94454.0,94445.0,0.137645]
[1732135701782,0.23081512,94452.0,94424.0,0.1]
[1732135701984,0.23081512,94452.0,94419.0,0.078]
[1732135701985,0.10711512,94446.0,94419.0,0.078]
[1732135702182,0.10711512,94444.0,94419.0,0.078]
[1732135702385,0.10711512,94444.0,94443.0,0.105883]
[1732135703185,0.10711512,94444.0,94440.0,0.105886]
[1732135703329,0.01071151,94443.0,94420.0,0.137682]
[1732135703520,0.10711512,94442.0,94441.0,0.105885]
[1732135703927,0.10711512,94442.0,94438.0,0.243543]
[1732135704222,0.10711512,94442.0,94441.0,0.105886]
[1732135705900,0.10711512,94442.0,94434.0,0.105893]
[1732135706107,0.01071151,94441.0,94421.0,0.137681]
[1732135706342,0.01071151,94441.0,94418.0,0.1]
[1732135706343,0.11989778,94440.0,94439.0,0.105887]
[1732135706548,0.10711512,94440.0,94429.0,0.137669]
[1732135706766,0.221767,94443.0,94419.0,0.02723402]
[1732135706767,0.10711512,94438.0,94419.0,0.02723402]
[1732135706963,0.10711512,94438.0,94433.0,0.105894]
[1732135707172,0.03288821,94439.0,94423.0,0.137677]
[1732135707173,0.10711512,94435.0,94423.0,0.137677]
[1732135707376,0.10711512,94431.0,94418.0,0.02780958]
[1732135707673,0.10711512,94431.0,94404.0,0.0017112]
[1732135707674,0.105899,94429.0,94421.0,0.105907]
[1732135707973,0.10711512,94428.0,94427.0,0.105901]
[1732135708554,0.10711512,94428.0,94404.0,0.02870132]
[1732135708758,0.025589,94427.0,94423.0,0.105906]
[1732135708938,0.025589,94427.0,94404.0,0.02870132]
[1732135708939,0.10711512,94426.0,94425.0,0.105904]
[1732135709523,0.10711512,94426.0,94424.0,0.105905]
[1732135709834,0.10711512,94426.0,94404.0,0.12870132]
[1732135709835,0.02405041,94425.0,94404.0,0.12870132]
[1732135709982,0.02405041,94425.0,94424.0,0.105905]
[1732135710160,0.1078,94431.0,94404.0,0.12870132]
[1732135710504,0.1078,94431.0,94430.0,0.105898]
[1732135710919,0.21491512,94431.0,94430.0,0.105898]
[1732135712028,0.10711512,94431.0,94428.0,0.137669]
[1732135712234,0.5073,94450.0,94425.0,0.105904]
[1732135712235,7.618761,94426.0,94425.0,0.105904]
[1732135713404,7.618761,94426.0,94425.0,0.205904]
[1732135715697,7.618761,94426.0,94425.0,0.32624635]
[1732135716508,7.602505,94426.0,94425.0,0.32624635]
[1732135717726,7.602505,94426.0,94425.0,0.105904]
[1732135720547,7.70962012,94426.0,94425.0,0.105904]
[1732135721487,7.602505,94426.0,94425.0,0.105904]
[1732135723204,7.602505,94426.0,94425.0,0.205904]
[1732135724220,7.602505,94426.0,94425.0,0.2076176]
[1732135726188,7.70962012,94426.0,94425.0,0.1076176]
[1732135726880,7.602505,94426.0,94425.0,0.1076176]
[1732135727799,7.602505,94426.0,94425.0,0.2835176]
[1732135728005,7.517781,94426.0,94425.0,0.3035176]
[1732135728222,5.51637585,94426.0,94425.0,0.41063272]
[1732135728425,5.40547085,94426.0,94425.0,0.41063272]
[1732135729029,5.40547085,94426.0,94425.0,0.55597507]
[1732135729030,5.28110692,94426.0,94425.0,0.55597507]
[1732135729229,5.28110692,94426.0,94425.0,0.60517507]
[1732135729429,5.17520192,94426.0,94425.0,0.48483272]
[1732135729681,4.35924899,94426.0,94425.0,0.56207507]
[1732135729896,4.04984118,94426.0,94425.0,0.49667507]
[1732135730042,4.04984118,94426.0,94425.0,0.68367089]
[1732135730043,3.92029681,94426.0,94425.0,0.68367089]
[1732135730264,3.92029681,94426.0,94425.0,0.49467507]
[1732135730456,3.28559088,94426.0,94425.0,0.49667507]
[1732135730725,2.75692878,94426.0,94425.0,0.49667507]
[1732135730921,2.75692878,94426.0,94425.0,0.63689513]
[1732135731120,2.30760054,94426.0,94425.0,0.49667507]
[1732135731488,2.20169554,94426.0,94425.0,0.49667507]
[1732135731706,2.20169554,94426.0,94425.0,0.47167507]
[1732135731906,2.20169554,94426.0,94425.0,0.35507507]
[1732135732311,2.20169554,94426.0,94425.0,0.24795995]
[1732135732815,2.15933354,94426.0,94425.0,0.24795995]
[1732135733021,2.13815254,94426.0,94425.0,0.35507507]
[1732135733238,2.09579054,94426.0,94425.0,0.35507507]
[1732135733397,1.98988554,94426.0,94425.0,0.35507507]
[1732135734134,1.98988554,94426.0,94425.0,0.47807507]
[1732135734481,1.88398054,94426.0,94425.0,0.47807507]
[1732135735473,1.77807554,94426.0,94425.0,0.47807507]
[1732135736259,1.77807554,94426.0,94425.0,0.48007507]
[1732135736420,1.67217054,94426.0,94425.0,0.48007507]
[1732135736593,1.67217054,94426.0,94425.0,0.47807507]
[1732135737214,1.67302734,94426.0,94425.0,0.47807507]
[1732135737615,1.67302734,94426.0,94425.0,0.45507507]
[1732135739272,1.67302734,94426.0,94425.0,0.45707507]
[1732135739496,1.67302734,94426.0,94425.0,0.45507507]
[1732135739858,1.67302734,94426.0,94425.0,0.33795995]
[1732135740726,1.67302734,94426.0,94425.0,0.1076176]
[1732135741459,1.82894246,94426.0,94425.0,0.1076176]
[1732135742836,1.90754246,94426.0,94425.0,0.1076176]
[1732135743551,1.90754246,94426.0,94425.0,0.0017136]
[1732135743753,1.90754246,94426.0,94425.0,0.1076176]
[1732135744306,1.90754246,94426.0,94425.0,0.0017136]
[1732135745618,1.90754246,94426.0,94425.0,0.1076176]
[1732135746078,2.01660501,94426.0,94425.0,0.0017136]
[1732135746450,2.01660501,94426.0,94414.0,0.105915]
[1732135746628,0.0753,94422.0,94418.0,0.105911]
[1732135746836,0.10711512,94421.0,94420.0,0.105909]
[1732135747466,0.10711512,94421.0,94418.0,0.105911]
[1732135747710,0.10711512,94421.0,94415.0,0.105915]
[1732135747830,0.10711512,94421.0,94417.0,0.105912]
[1732135748278,0.10711512,94421.0,94406.0,0.1336131]
[1732135748279,0.10711512,94421.0,94419.0,0.10591]
[1732135748450,0.10711512,94421.0,94420.0,0.105909]
[1732135748837,0.10711512,94421.0,94417.0,0.105912]
[1732135749037,0.10711512,94421.0,94418.0,0.105911]
[1732135749284,0.0794,94420.0,94417.0,0.105912]
[1732135749717,0.0794,94420.0,94406.0,0.0276881]
[1732135749906,0.0497,94419.0,94413.0,0.211834]
[1732135750113,0.0794,94418.0,94414.0,0.105915]
[1732135750620,0.10711512,94417.0,94401.0,0.1]
[1732135750821,0.10711512,94417.0,94415.0,0.105914]
[1732135751024,0.10711512,94417.0,94416.0,0.105914]
[1732135752016,0.10711512,94417.0,94415.0,0.105914]
[1732135752271,0.10711512,94417.0,94404.0,0.0017112]
[1732135752272,0.0794,94416.0,94404.0,0.0017112]
[1732135752515,0.0794,94414.0,94405.0,0.105925]
[1732135752771,0.15681512,94415.0,94406.0,0.105924]
[1732135752772,0.0794,94412.0,94406.0,0.105924]
[1732135753021,0.12034235,94407.0,94404.0,0.0017112]
[1732135753267,0.1291,94405.0,94404.0,0.0017112]
[1732135753581,0.24621512,94405.0,94404.0,0.0017112]
[1732135753806,0.23621512,94405.0,94404.0,0.0017112]
[1732135754284,0.23621512,94405.0,94394.0,0.0017134]
[1732135754285,0.245034,94398.0,94394.0,0.0017134]
[1732135754534,0.28244235,94395.0,94394.0,0.0017134]
[1732135754769,0.49549447,94395.0,94394.0,0.0017134]
[1732135757523,0.23621512,94395.0,94394.0,0.0017134]
[1732135759379,0.23621512,94395.0,94394.0,0.1076514]
[1732135760647,0.29409663,94395.0,94394.0,0.0017134]
[1732135760835,0.41003363,94395.0,94394.0,0.0017134]
[1732135762379,0.43764725,94395.0,94394.0,0.0017134]
[1732135762625,0.23621512,94395.0,94394.0,0.0017134]
[1732135762860,0.34215212,94395.0,94394.0,0.0017134]
[1732135763551,0.35215212,94395.0,94394.0,0.0017134]
[1732135763807,0.35415212,94395.0,94394.0,0.0017134]
[1732135764034,0.35215212,94395.0,94394.0,0.0017134]
[1732135764990,0.35415212,94395.0,94394.0,0.0017134]
[1732135765208,0.35215212,94395.0,94394.0,0.0017134]
[1732135767539,0.38715212,94395.0,94394.0,0.0017134]
[1732135768755,0.117942,94391.0,94390.0,0.0017114]
[1732135768962,0.47159947,94391.0,94390.0,0.0017114]
[1732135771144,0.36365747,94391.0,94390.0,0.0017114]
[1732135772145,0.47159947,94391.0,94390.0,0.0017114]
[1732135772490,0.46959947,94391.0,94390.0,0.0017114]
[1732135772607,0.36365747,94391.0,94390.0,0.0017114]
[1732135773848,0.46959947,94391.0,94390.0,0.0017114]
[1732135774043,0.55219824,94391.0,94390.0,0.0017114]
[1732135775896,0.46959947,94391.0,94390.0,0.0017114]
[1732135776120,0.34925712,94391.0,94390.0,0.0017114]
[1732135776560,0.34925712,94391.0,94390.0,0.00501845]
[1732135776763,0.34925712,94391.0,94390.0,0.0017114]
[1732135776964,0.50459947,94391.0,94390.0,0.0017114]
[1732135777141,0.71366202,94391.0,94390.0,0.0017114]
[1732135778150,0.7434164,94391.0,94390.0,0.0017114]
[1732135778377,0.0826,94379.0,94366.0,0.0864402]
[1732135778552,0.10711512,94378.0,94350.0,0.12034235]
[1732135778776,0.10711512,94378.0,94377.0,0.105958]
[1732135779138,0.10711512,94378.0,94377.0,0.12558866]
[1732135781462,0.10711512,94378.0,94377.0,0.105958]
[1732135781660,0.10711512,94378.0,94377.0,0.12562177]
[1732135781861,0.10711512,94378.0,94377.0,0.12892882]
[1732135782704,0.10711512,94378.0,94377.0,0.12562177]
[1732135783106,0.10711512,94378.0,94377.0,0.105958]
[1732135783304,0.10711512,94378.0,94377.0,0.12564095]
[1732135784352,0.10711512,94378.0,94377.0,0.105958]
[1732135785003,0.10711512,94378.0,94377.0,0.1068151]
[1732135787393,0.10711512,94378.0,94377.0,0.0008571]
[1732135787394,0.11782663,94378.0,94377.0,0.0008571]
[1732135787567,0.19412663,94378.0,94377.0,0.0008571]
[1732135787938,0.23962663,94378.0,94377.0,0.0008571]
[1732135788382,0.34558263,94378.0,94377.0,0.0008571]
[1732135789469,0.45338263,94378.0,94377.0,0.0008571]
[1732135790351,0.46338263,94378.0,94377.0,0.0008571]
[1732135790556,0.60640567,94378.0,94377.0,0.0008571]
[1732135792634,0.57338263,94378.0,94377.0,0.0008571]
[1732135793116,0.60639275,94378.0,94377.0,0.0008571]
[1732135793272,0.62939275,94378.0,94377.0,0.0008571]
[1732135793472,0.62939275,94378.0,94348.0,0.105989]
[1732135793473,0.01,94336.0,94327.0,0.0002]
[1732135793670,0.45126147,94336.0,94327.0,0.0002]
[1732135793873,0.46126147,94336.0,94327.0,0.0002]
[1732135794178,0.41008625,94336.0,94327.0,0.0002]
[1732135794306,0.41008625,94336.0,94327.0,0.106213]
[1732135794307,0.62997902,94336.0,94327.0,0.106213]
[1732135794524,0.2797439,94336.0,94328.0,0.106012]
[1732135794663,0.14221986,94333.0,94327.0,0.106213]
[1732135795021,0.1719439,94332.0,94327.0,0.212226]
[1732135795263,0.1719439,94332.0,94328.0,0.106012]
[1732135795436,0.1719439,94332.0,94331.0,0.106209]
[1732135795437,0.10711512,94332.0,94331.0,0.106209]
[1732135796107,0.16451272,94332.0,94331.0,0.106209]
[1732135796350,0.22364209,94332.0,94331.0,0.106209]
[1732135796761,0.19192058,94332.0,94331.0,0.0002]
[1732135797278,0.13761829,94332.0,94331.0,0.1070664]
[1732135797474,0.10711512,94332.0,94331.0,0.1070664]
[1732135800433,0.1078,94336.0,94335.0,0.106005]
[1732135800634,0.065398,94336.0,94335.0,0.206005]
[1732135800834,0.09484102,94377.0,94370.0,0.105965]
[1732135801078,0.0017148,94378.0,94377.0,0.105958]
[1732135802306,0.10882992,94378.0,94377.0,0.105958]
[1732135803093,0.10882992,94378.0,94373.0,0.105962]
[1732135803300,0.10882992,94378.0,94355.0,0.105982]
[1732135803301,0.10597,94366.0,94344.0,0.12034235]
[1732135803464,0.10711512,94365.0,94364.0,0.105972]
[1732135803660,0.10711512,94365.0,94362.0,0.105974]
[1732135803861,0.10711512,94365.0,94364.0,0.105972]
[1732135805301,0.0017148,94378.0,94362.0,0.105974]
[1732135805302,0.0017148,94378.0,94375.0,0.10596]
[1732135805540,0.0017148,94378.0,94377.0,0.105958]
[1732135807034,0.35139771,94378.0,94375.0,0.10596]
[1732135807243,0.34968291,94377.0,94376.0,0.105959]
[1732135807450,0.34968291,94377.0,94365.0,0.29007672]
[1732135807451,0.01,94375.0,94338.0,0.18410572]
[1732135807592,0.24860451,94378.0,94343.0,0.02721634]
[1732135807593,0.10711512,94368.0,94343.0,0.02721634]
[1732135807791,0.15571512,94361.0,94332.0,0.106007]
[1732135807995,0.0823,94355.0,94330.0,0.1077234]
[1732135808195,0.11711512,94349.0,94330.0,0.0017134]
[1732135808412,0.17191512,94349.0,94330.0,0.0017134]
[1732135808591,0.10711512,94347.0,94330.0,0.0017134]
[1732135808967,0.03838921,94346.0,94330.0,0.0017134]
[1732135809168,0.0648,94349.0,94330.0,0.0017134]
[1732135809169,0.10711512,94345.0,94330.0,0.0017134]
[1732135810151,0.10711512,94345.0,94327.0,0.106013]
[1732135810308,0.10711512,94345.0,94321.0,0.10602]
[1732135810510,0.0548,94349.0,94311.0,0.1002]
[1732135810511,0.106003,94337.0,94311.0,0.1002]
[1732135810731,0.10711512,94336.0,94312.0,0.00106021]
[1732135810942,0.10711512,94336.0,94314.0,0.1]
[1732135811156,0.10711512,94336.0,94332.0,0.106008]
[1732135811347,0.10711512,94336.0,94332.0,0.106007]
[1732135811549,0.10711512,94336.0,94335.0,0.106005]
[1732135811777,0.0638,94349.0,94339.0,0.106]
[1732135811778,0.0548,94349.0,94339.0,0.106]
[1732135811975,0.0548,94349.0,94341.0,0.105998]
[1732135811976,0.10711512,94348.0,94341.0,0.105998]
[1732135812173,0.10711512,94348.0,94336.0,0.106003]
[1732135812379,0.13628663,94348.0,94330.0,0.10601]
[1732135812579,0.10711512,94348.0,94335.0,0.106004]
[1732135812781,0.10711512,94348.0,94336.0,0.106003]
[1732135813311,0.10711512,94348.0,94330.0,0.10601]
[1732135813312,0.10711512,94348.0,94343.0,0.105995]
[1732135813457,0.10711512,94348.0,94347.0,0.105991]
[1732135813657,0.10711512,94348.0,94343.0,0.105995]
[1732135813877,0.10711512,94348.0,94347.0,0.105991]
[1732135814827,0.10711512,94348.0,94341.0,0.116597]
[1732135815035,0.10711512,94348.0,94344.0,0.105994]
[1732135815505,0.10711512,94348.0,94328.0,0.1]
[1732135815714,0.10711512,94348.0,94347.0,0.105991]
[1732135815920,0.0916,94367.0,94347.0,0.105991]
[1732135815921,0.0816,94367.0,94347.0,0.105991]
[1732135816090,0.0816,94367.0,94352.0,0.116583]
[1732135816091,0.10711512,94366.0,94352.0,0.116583]
[1732135816327,0.10711512,94366.0,94333.0,0.1]
[1732135816328,0.10711512,94366.0,94363.0,0.105973]
[1732135816533,0.10711512,94366.0,94365.0,0.105971]
[1732135816945,0.10711512,94366.0,94359.0,0.116575]
[1732135816946,0.10711512,94366.0,94363.0,0.105973]
[1732135817161,0.10711512,94366.0,94342.0,0.11]
[1732135817366,0.10711512,94366.0,94365.0,0.105971]
[1732135817573,0.10711512,94366.0,94342.0,0.11]
[1732135817574,0.10711512,94366.0,94342.0,0.1]
[1732135817734,0.10711512,94366.0,94333.0,0.02708543]
[1732135817735,0.105979,94358.0,94344.0,0.116594]
[1732135817891,0.11771302,94357.0,94333.0,0.02708543]
[1732135818096,0.11771302,94357.0,94334.0,0.106006]
[1732135818097,0.211965,94355.0,94334.0,0.106006]
[1732135818305,0.0805,94366.0,94326.0,0.03]
[1732135818306,0.10711512,94354.0,94340.0,0.105999]
[1732135818507,0.10711512,94354.0,94343.0,0.105995]
[1732135818710,0.10711512,94354.0,94344.0,0.105994]
[1732135818933,0.10711512,94354.0,94340.0,0.105999]
[1732135819137,0.10711512,94354.0,94345.0,0.105993]
[1732135819330,0.10711512,94354.0,94342.0,0.105997]
[1732135819536,0.0495,94351.0,94326.0,0.03]
[1732135819764,0.31910312,94345.0,94326.0,0.03]
[1732135819931,0.29122084,94340.0,94326.0,0.03]
[1732135820577,0.106006,94334.0,94326.0,0.03]
[1732135820834,0.10711512,94333.0,94326.0,0.03]
[1732135822916,0.10601,94331.0,94326.0,0.03]
[1732135823218,0.0548,94338.0,94326.0,0.03]
[1732135823219,0.106014,94327.0,94326.0,0.03]
[1732135823415,0.21312912,94327.0,94326.0,0.03]
[1732135823619,0.34212912,94327.0,94326.0,0.03]
[1732135825767,0.38512912,94327.0,94326.0,0.03]
[1732135825969,0.49419167,94327.0,94326.0,0.03]
[1732135826796,0.49419167,94327.0,94311.0,0.0002]
[1732135826797,0.106031,94312.0,94311.0,0.0002]
[1732135827046,0.16191512,94312.0,94311.0,0.0002]
[1732135827393,0.27794612,94312.0,94311.0,0.0002]
[1732135827573,0.55525685,94312.0,94311.0,0.0002]
[1732135828897,0.37115113,94312.0,94311.0,0.0002]
[1732135829098,0.17091512,94312.0,94311.0,0.0012]
[1732135830445,0.17091512,94312.0,94311.0,0.107232]
[1732135830845,0.17991512,94312.0,94311.0,0.108232]
[1732135831259,0.17991512,94312.0,94311.0,0.0022]
[1732135831451,0.17991512,94312.0,94311.0,0.108232]
[1732135831655,0.17991512,94312.0,94311.0,0.00368842]
[1732135831856,0.21229554,94312.0,94311.0,0.10972042]
[1732135832262,0.17991512,94312.0,94311.0,0.10972042]
[1732135832836,0.0728,94312.0,94311.0,0.10972042]
[1732135833042,0.018,94312.0,94311.0,0.10972042]
[1732135833221,0.018,94312.0,94311.0,0.13021176]
[1732135833400,0.12511512,94312.0,94311.0,0.13021176]
[1732135833577,0.13762663,94312.0,94311.0,0.00454482]
[1732135833961,0.24465763,94312.0,94311.0,0.00354482]
[1732135834583,0.12862663,94312.0,94311.0,0.00354482]
[1732135835236,0.23465763,94312.0,94311.0,0.00354482]
[1732135835438,0.23465763,94312.0,94311.0,0.00254482]
[1732135835439,0.22565763,94312.0,94311.0,0.00254482]
[1732135835861,0.11962663,94312.0,94311.0,0.00254482]
[1732135836066,0.10711512,94312.0,94311.0,0.10857682]
[1732135838487,0.10711512,94312.0,94311.0,0.00254482]
[1732135838696,0.22791592,94312.0,94311.0,0.00254482]